Cogmind - Beta 13 @@@ ROGUE MODE // 2024.07.17 @ 17:14:21 Player: Temnova Result: Destroyed by Y-45 Defender with Heavy Assault Rifle Performance ------------- Evolutions (0) 0 Regions Visited (3) 600 Robots Destroyed (18) 90 Value Destroyed (283) 283 Prototype IDs (0) 0 Alien Tech Used (0) 0 Bonus (0) 0 TOTAL SCORE: 973 Bonus ------- None Cogmind --------- Core Integrity 0/250 Matter 300/300 Energy 96/100 System Corruption 0% Temperature Cool (9) Movement Core (50) Location -10/Subcaves Parts ------- > --- POWER (1) -------- (None) > --- PROPULSION (2) --- (None) > --- UTILITY (2) ------ Long-range Tractor Beam > --- WEAPON (2) ------- (None) > --- INVENTORY (5) ---- Disposable Heat Sink Makeshift System Shield High-powered Shotgun Peak State ------------ > --- POWER ------------ Light Nuclear Core > --- PROPULSION ------- Light Treads Airjet > --- UTILITY ---------- Small Storage Unit Long-range Tractor Beam > --- WEAPON ----------- Assault Rifle High-powered Shotgun > --- INVENTORY -------- Light Treads Wheel Compact Wheel Flight Unit Heat Sink Reaction Control System Improved Propulsion Shielding Mining Laser [Rating: 16] Favorites ----------- Power Light Nuclear Core Engine Light Ion Engine Power Core Light Nuclear Core Propulsion Light Treads Treads Light Treads Wheel Wheel Hover Unit Airjet Flight Unit Flight Unit Utility Small Storage Unit Device Tractor Beam Storage Small Storage Unit Protection Improved Propulsion Shielding Weapon Assault Rifle Ballistic Gun Assault Rifle Special Weapon Mining Laser Build | -11 -10 -10 -10 ------- Run | Yrd Mat Min Sub Slots Evolved . | . . . . Power . | . . . . Propulsion . | . . . . Utility . | . . . . Weapon . | . . . . Parts Attached 33 | 9 . 8 16 Power 3 | 1 . 1 1 Engine 2 | 1 . . 1 Core 1 | . . 1 . Reactor . | . . . . Propulsion 11 | 4 . 4 3 Treads 5 | 2 . 2 1 Leg . | . . . . Wheel 3 | 2 . . 1 Hover 2 | . . 1 1 Flight 1 | . . 1 . Utility 7 | 2 . 1 4 Device 5 | 1 . 1 3 Storage 1 | 1 . . . Processor . | . . . . Hackware . | . . . . Protection 1 | . . . 1 Artifact . | . . . . Weapon 12 | 2 . 2 8 Energy Gun . | . . . . Energy Cannon . | . . . . Ballistic Gun 10 | 2 . 1 7 Ballistic Cannon . | . . . . Launcher . | . . . . Special Weapon 2 | . . 1 1 Impact Weapon . | . . . . Slashing Weapon . | . . . . Piercing Weapon . | . . . . Special Melee Weapon . | . . . . Unidentified Prototypes . | . . . . Parts Lost 8 | . . . 8 Power 2 | . . . 2 Propulsion 2 | . . . 2 Utility 2 | . . . 2 Weapon 2 | . . . 2 Highest Loss Streak 2 | . . . 2 To Critical Strikes . | . . . . Average Slot Usage (%) 94 | . 100 99 84 Engine 3 | . 14 2 4 Core 8 | . . 11 3 Treads 25 | . 28 27 21 Hover 1 | . . . 4 Device 11 | . 14 13 5 Storage 13 | . 14 14 13 Protection 2 | . . . 6 Ballistic Gun 25 | . 28 26 21 Special Weapon 1 | . . 1 1 Naked Turns . | . . . . Heaviest Build 17 | 13 13 16 17 Greatest Support 40 | 40 40 40 40 Greatest Overweight (x) 3 | . . . 3 Average Overweight (x) . | . . . . Largest Inventory Capacity 8 | 8 8 8 8 Average Capacity 7 | 7 8 8 7 Most Carried 8 | 3 3 8 8 Average Carried 4 | 1 2 5 5 Final Capacity 8 | 8 8 8 5 Final Carried 7 | 2 3 7 3 Class Distribution -------------------- 100% | Mutant Dominant Class ---------------- Mutant | -10/Materials Mutant | -10/Mines Mutant | -10/Subcaves Resources | -11 -10 -10 -10 ----------- Run | Yrd Mat Min Sub Matter Collected 738 | 302 . 251 185 Remotely 491 | 176 . 251 64 Salvage Created 797 | 100 . 598 99 Parts 44 | 9 . 27 8 Haulers Intercepted . | . . . . Recyclers Shooed 2 | . . 2 . Parts Field Recycled . | . . . . Retrieved Matter . | . . . . Parts Self-Destructed 8 | . . . 8 Prevented . | . . . . Kills | -11 -10 -10 -10 ------- Run | Yrd Mat Min Sub Combat Hostiles Destroyed 8 | . . 5 3 Guns 8 | . . 5 3 Classes Destroyed 6 | 2 . 3 1 Worker 2 | 2 . . . Tunneler 1 | . . 1 . Recycler 7 | 1 . 6 . Swarmer 3 | . . 3 . Grunt 4 | . . 2 2 Subdweller 1 | . . . 1 Best Kill Streak 5 | 2 . 5 2 Combat Bots Only 3 | . . 3 2 Max Kills in Single Turn 2 | 2 . 2 1 Gunslinging . | . . . . Exploded . | . . . . Melee . | . . . . Uniques/NPCs Destroyed . | . . . . Combat | -11 -10 -10 -10 -------- Run | Yrd Mat Min Sub Hostile Shots Fired 109 | . . 24 85 Missed 37 | . . 9 28 Damage Taken 1277 | . . 163 1114 Core 261 | . . 6 255 Absorbed by Shields . | . . . . Redirected to Shielding 105 | . . . 105 Core Remaining (%) 100 | 100 . . . Volleys Fired 56 | 3 . 41 12 Largest 2 | 2 . 2 2 Hottest 125 | 40 . 100 125 Shots Fired 91 | 4 . 66 21 Gun 77 | 4 . 55 18 Cannon . | . . . . Launcher . | . . . . Special 14 | . . 11 3 Kinetic 77 | 4 . 55 18 Thermal 14 | . . 11 3 Explosive . | . . . . Electromagnetic . | . . . . Robot Hit Streak 16 | 2 . 15 16 Robot Miss Streak 2 | 1 . 2 1 Penetration Max . | . . . . Secondary Targets 1 | . . 1 . Max Gunslinging Chain 1 | . . 1 . Shots Hit Robots 60 | 3 . 37 20 Core Hits 30 | 4 . 20 6 Critical Kills . | . . . . Critical Parts Destroyed . | . . . . Critical Strikes . | . . . . Melee Attacks . | . . . . Impact . | . . . . Slashing . | . . . . Piercing . | . . . . Sneak Attacks . | . . . . Combat Hostiles . | . . . . Follow-up Attacks . | . . . . Damage Inflicted 837 | 50 . 475 312 Guns 817 | 50 . 475 292 Cannons . | . . . . Explosions . | . . . . Melee . | . . . . Ramming . | . . . . Kinetic 817 | 50 . 475 292 Thermal 20 | . . . 20 Explosive . | . . . . Electromagnetic . | . . . . Impact . | . . . . Slashing . | . . . . Piercing . | . . . . Highest Corruption . | . . . . Average Corruption . | . . . . Corruption Purged . | . . . . Corruption Blocked . | . . . . Overload Shots . | . . . . Overflow Damage . | . . . . Projectiles . | . . . . Explosions . | . . . . Melee . | . . . . Knockbacks . | . . . . Impact . | . . . . Kinetic . | . . . . Secondary . | . . . . Self-Inflicted Damage . | . . . . Shots . | . . . . Rammed . | . . . . Targets Rammed . | . . . . Kicked . | . . . . Crushed . | . . . . Highest Temperature 104 | . . 104 4 Average Temperature 39 | . . 43 2 Received Heat Transfer 315 | . . 51 264 Siege Activations . | . . . . Robots Corrupted . | . . . . Combat Hostiles . | . . . . Parts Fried . | . . . . Impact Corruptions . | . . . . Robots Melted . | . . . . Combat Hostiles . | . . . . Parts Melted . | . . . . Heat Transferred 160 | . . . 160 Parts Sabotaged . | . . . . Parts Stolen . | . . . . Parts Stripped . | . . . . Power Chain Reactions . | . . . . Alert | -11 -10 -10 -10 ------- Run | Yrd Mat Min Sub Peak Influence 143 | 15 9 143 . Initial 9 | . 9 3 . Average 26 | 4 9 28 . Maximum Alert Level . | . . . . Low Security (%) 100 | 100 100 100 . Level 1 . | . . . . Level 2 . | . . . . Level 3 . | . . . . Level 4 . | . . . . Level 5 . | . . . . High Security . | . . . . Max Security . | . . . . Squads Dispatched 3 | . 2 1 . Investigation 2 | . 1 1 . Extermination . | . . . . Reinforcement 1 | . 1 . . Assault . | . . . . Garrison . | . . . . Intercept . | . . . . Searches Triggered . | . . . . Construction Impeded . | . . . . Haulers Reinforced . | . . . . Active Scanning Responses . | . . . . Cargo Convoy Interrupts . | . . . . Stealth | -11 -10 -10 -10 --------- Run | Yrd Mat Min Sub Distress Signals . | . . . . Communications Jammed . | . . . . Distress Signals . | . . . . Times Spotted 16 | . 1 5 10 Peak Tracking Total 3 | . 1 3 2 Tactical Retreats 2 | . . . 2 Traps | -11 -10 -10 -10 ------- Run | Yrd Mat Min Sub Traps Triggered 2 | . . . 2 Indirectly . | . . . . Trap Hack Attempts . | . . . . Triggered . | . . . . Disarmed . | . . . . Reprogrammed . | . . . . Reused . | . . . . Traps Extracted . | . . . . Installed . | . . . . Triggered . | . . . . Machines | -11 -10 -10 -10 ---------- Run | Yrd Mat Min Sub Machines Disabled . | . . . . Max in Single Turn . | . . . . Machines Repaired . | . . . . Machines Dismantled . | . . . . Machines Sabotaged . | . . . . Overloaded Fab Kills . | . . . . Hacking | -11 -10 -10 -10 --------- Run | Yrd Mat Min Sub Machines Accessed 2 | . 1 1 . Terminals 1 | . 1 . . Fabricators . | . . . . Repair Stations . | . . . . Recycling Units . | . . . . Scanalyzers . | . . . . Garrison Access . | . . . . Total Hacks 6 | . 5 1 . Successful 3 | . 2 1 . Failed 3 | . 3 . . Catastrophic 2 | . 2 . . Database Lockouts . | . . . . Manual . | . . . . Terminals 5 | . 5 . . Fabricators . | . . . . Repair Stations . | . . . . Recycling Units . | . . . . Scanalyzers . | . . . . Garrison Access . | . . . . Terminal Hacks 3 | . 2 1 . Open Door 1 | . . 1 . Branch Access Points 1 | . 1 . . Hauler Manifests 1 | . 1 . . Fabricator Hacks . | . . . . Repair Station Hacks . | . . . . Recycling Unit Hacks . | . . . . Scanalyzer . | . . . . Garrison Access Hacks . | . . . . Unauthorized Hacks . | . . . . Terminals . | . . . . Fabricators . | . . . . Repair Stations . | . . . . Recycling Units . | . . . . Scanalyzers . | . . . . Garrison Access . | . . . . Data Cores Recovered . | . . . . Used . | . . . . Hacking Detections 1 | . 1 . . Full Trace Events 1 | . 1 . . Feedback Events . | . . . . Feedback Blocked . | . . . . Robot Schematics Acquired . | . . . . Robots Built . | . . . . Authchips . | . . . . Time . | . . . . Total Robot Build Rating . | . . . . Part Schematics Acquired . | . . . . Parts Built . | . . . . Authchips . | . . . . Time . | . . . . Total Part Build Rating . | . . . . Parts Repaired . | . . . . Time . | . . . . Parts Recycled . | . . . . Recycled Matter . | . . . . Retrieved Matter . | . . . . Retrieved Components . | . . . . Parts Scanalyzed . | . . . . Part Schematics Acquired . | . . . . Parts Damaged . | . . . . Bothacking | -11 -10 -10 -10 ------------ Run | Yrd Mat Min Sub Used RIF Installer . | . . . . Robots Hacked . | . . . . Non-combat . | . . . . Combat . | . . . . Robot Hacks Applied . | . . . . Relay Couplers Released . | . . . . Fabnet Peak Effective % . | . . . . Robots Rewired . | . . . . Allies Hacked . | . . . . Hacks Repelled . | . . . . Allies | -11 -10 -10 -10 -------- Run | Yrd Mat Min Sub Total Allies . | . . . . Largest Group . | . . . . Highest-Rated Group . | . . . . Highest-Rated Ally . | . . . . Total Orders . | . . . . Ally Attacks . | . . . . Total Damage . | . . . . Kills . | . . . . Allies Corrupted . | . . . . Allies Melted . | . . . . Intel | -11 -10 -10 -10 ------- Run | Yrd Mat Min Sub Robot Analysis Total . | . . . . Derelict Logs Recovered 1 | . . . 1 Drone Launches . | . . . . Drone Recoveries . | . . . . Exploration | -11 -10 -10 -10 ------------- Run | Yrd Mat Min Sub Turns Passed 2467 | 112 90 1523 742 Spaces Moved 1489 | 72 55 843 519 Core 39 | 10 . . 29 Treads 1284 | 38 55 843 348 Legs . | . . . . Wheels 24 | 24 . . . Hover 142 | . . . 142 Flight . | . . . . Fastest Speed 50 | 50 160 160 50 Average Speed 146 | 121 160 160 127 Slowest Speed 200 | 160 160 160 200 Overloaded Moves . | . . . . Propulsion Burnouts . | . . . . Robots Hopped . | . . . . Cave-ins Triggered . | . . . . Exploration Rate (%) 38 | 4 13 104 33 Regions Visited 3 Branch Regions 2 Pre-discovered Areas 1 | . . . 1 Known Exits Taken 1 | . 1 . . Unknown Exits Taken 2 | 1 . 1 . Scrap Searched 4 | . . 1 3 Spaces Dug 5 | . . 5 . Terrain Destroyed 6 | . . 6 . Melee . | . . . . Projectile 6 | . . 6 . AOE . | . . . . Terrain Rammed . | . . . . Walls Destroyed . | . . . . Machines Disabled . | . . . . Actions | -11 -10 -10 -10 --------- Run | Yrd Mat Min Sub Total 1651 | 93 57 931 570 Wait 32 | . 2 26 4 Move 1486 | 71 54 842 519 Hop . | . . . . Pick Up 25 | 9 1 8 7 Fast Attach . | . . . . Attach 23 | 8 . 5 10 Detach 6 | 1 . 2 3 Swap 10 | 1 . 3 6 Drop 13 | . . 4 9 Fire 56 | 3 . 41 12 Melee . | . . . . Ram . | . . . . Kick . | . . . . Crush . | . . . . Escape Stasis . | . . . . Rewire . | . . . . Trap . | . . . . Miscellaneous . | . . . . Route ------- -11/Scrapyard -10/Materials -10/Mines (discovered 3 exits: [*Mat x2] / [*Sub]) -10/Subcaves History --------- Turn | Location | Event 7 | -11/Scrapyard | Discovered new exit (range 16) 113 | -11/Scrapyard | Entered Materials 164 | -10/Materials | Discovered new exit (range 6) 178 | -10/Materials | Identified exit to Mines 203 | -10/Materials | Entered Mines 224 | -10/Mines | Discovered new exit (range 11) 304 | -10/Mines | Build established: Mutant 357 | -10/Mines | Discovered new exit (range 9) 1069 | -10/Mines | Met a Derelict shopkeep closing up shop 1444 | -10/Mines | Discovered new exit (range 8) 1726 | -10/Mines | Entered Subcaves 1727 | -10/Subcaves | Shifting Twisted Machinery released Sub. Monowheel 1761 | -10/Subcaves | Shifting Twisted Machinery released Flamer 2077 | -10/Subcaves | Shifting Twisted Machinery released Humpback 2083 | -10/Subcaves | Shifting Twisted Machinery released Sub. Power Source 2181 | -10/Subcaves | Core integrity fell below 50% 2311 | -10/Subcaves | Learned location of Zion (-7) 2410 | -10/Subcaves | Core integrity fell below 20% 2413 | -10/Subcaves | A swath of the cavern ceiling suddenly collapsed 2468 | -10/Subcaves | Destroyed by Y-45 Defender with Heavy Assault Rifle Last Messages --------------- Acquired 6 matter. Acquired 7 matter. Triggered Piercing Trap. Spikes shoot up from the floor. Critical hit (Impale). Reaction Control System destroyed. Critical hit (Impale). Triggered Piercing Trap. Spikes shoot up from the floor. Critical hit (Impale). Acquired derelict log, extracted data. World map updated: -7/Zion. Lgt. Treads destroyed. A swath of the cavern ceiling suddenly collapses. Airjet destroyed. Dropped Battle Rifle. Dropped Sml. Storage Unit. Acquired 7 matter. Acquired 47 matter. Acquired 10 matter. Map ----- +----------------------------------------------------+ | ?????????????????????????????????????????????????? | | ?????????????????????????????????????????????????? | | ?????????????????????????????????????????????????? | | ?????????????????????????????????????????????????? | | ?????????????????????????????????????????????????? | | ?????????????????????????????????????????????????? | | ?????????????????????????????????????????????????? | | ?????????????????????????????????????????????????? | | ???????????##????????????????????????????????????? | | ??????????## ##??????????????????????????????????? | | ??????????# #??????????????????????????????????? | | ??????##???# ##?????????????????????????????????? | | ??????# ??# ##????????????????????????????????? | | ??????# ?# #????????????????????????????????? | | ??????# #?# ######???????????????????????????? | | ???????# ## ##??????????????????????????? | | ??????## ####???????##??????????????? | | ??????# # ##????? #??????????????? | | ??????## ## ## #???? #??????????????? | | ??????# ?# # ## #??? Y #??????????????? | | #??##??## ######### ##? #??????????????? | | ???### #??????## ## ### ????????? | | ??## ##??????## % % !& ????????? | | #??# [! ##?????## && ????????? | | #??## ####??# % %%#???????????? | | #???#### #??# @ [ ##???????????? | | ???##"#### #??## % [#????????????? | | ????#"#"### ###???###### ### #????????????? | | #???##""""## ##??????????##??? * % ??????????? | | #??###"##"### #???????????????? ??????????? | | #??#"#""#""## #????????????????? ???????????? | | ##?#""#"#""### #??????????????????????????????? | | ###"##""#"#### #######?????????????????????????? | | ##""###"#"#"## ### ##????????????????????????? | | ###""#"###""#"#" ## #????????????????????????? | | #?###"""""##""# ##????????????????????????? | | #??####""#"#""" ##?????????????????????????? | | #### "#"#"#""# #??????????????????????????? | | ##""##""###"" ####??????????????????????????? | | #"##"""# #" ###?????????????????????????????? | | #"#"#""###"## #???????????????????????????????? | | ##"""# #### #??????????????????????????????? | | ######?# #?????????????????????????????? | | #???#### #????????????????????????????? | | #??????# ##????????????????????????????? | | ?????## ##?????????????????????????????? | | # #??????##??????????????????????????????? | | # ### ###??????????????????????????????????????? | | ###?? #????????????????????????????????????????? | | ?????# #????????????????????????????????????????? | +----------------------------------------------------+ Best States ------------- Heat Dissipation 25 Energy Generation 15 Energy Capacity 200 Matter Stores 300 Matter Capacity 300 Sight Range 16 Terrain Scan Density 10 Propulsion Shielding 66 Evasion (%) 61 Recoil Reduction 2 Item Schematics ----------------- None Robot Schematics ------------------ None Fabricated ------------ Nothing Alien Tech Used ----------------- None Achievements -------------- None Challenges ------------ None Game ------ Seed UtilityLargeFemtoactuators Manual? 0 Play Time 00:14:14 Cumulative 8.9 hours Start 2024.07.17 @ 17:00:20 End 2024.07.17 @ 17:14:21 Sessions 1 Manual Loads 0 Difficulty Rogue Special Mode None Game No. 22 Rogue 22 Adventurer 0 Explorer 0 Win Type - Total 0 Types 0/0/0/0/0/0/0/0/0 Lore% 16 Gallery% 17 Achievement% 17 Wizard Run 0 Options --------- Layout 0 ASCII 0 Keyboard 0 Movement Mouse Keybinds 0 Fullscreen 1 Font 18/SmallcapsGlow Map View 38x25 Zoom Use 100% Tactical HUD 0 Map Filters NONE Filters NONE Steam 1 RUN: e8350c27-e743-4fe8-8ae2-691d6e000fc4